[Event "8th Ali Ipek Tournament 2020"]
[Site "Ankara"]
[Date "2020.03.08"]
[Round "6.1"]
[White "Yarashov, Azat"]
[Black "Zor, Alber Kadir"]
[Result "0-1"]
[ECO "A07"]
[WhiteElo "2218"]
[BlackElo "2119"]
[Annotator "ChessBase"]
[PlyCount "104"]
[EventDate "2020.03.04"]
[EventType "swiss"]
[EventCountry "TUR"]
[SourceTitle "playchess.com"]
[Source "ChessBase"]
[SourceQuality "1"]
[TimeControl "5400+30"]

1. Nf3 {[%emt 0:05:30]} d5 {[%emt 0:00:30]} 2. g3 {[%emt 0:00:00]} c6 {[%emt 0:00:00]} 3. Bg2 {[%emt 0:00:00]} Bg4 {[%emt 0:00:00]} 4. h3 {[%emt 0:02:30]} Bh5 {[%emt 0:08:30]} 5. b3 {[%emt 0:04:30]} Nd7 {[%emt 0:00:30]} 6. Bb2 {[%emt 0:00:00]} Ngf6 {[%emt 0:00:30]} 7. O-O {[%emt 0:02:00]} e6 {[%emt 0:00:30]} 8. c4 {[%emt 0:00:30]} Bd6 {[%emt 0:00:30]} 9. d4 {[%emt 0:05:30]} Ne4 {[%emt 0:04:30]} 10. Qc1 {[%emt 0:00:30]} Qe7 {[%emt 0:03:30]} 11. Ba3 {[%emt 0:01:30]} a5 {[%emt 0:02:30]} 12. Bxd6 {[%emt 0:00:30]} Qxd6 {[%emt 0:00:00]} 13. Qb2 {[%emt 0:02:30]} f5 {[%emt 0:15:00]} 14. e3 {[%emt 0:07:30]} Bxf3 {[%emt 0:09:30]} 15. Bxf3 {[%emt 0:00:30]} Ndf6 {[%emt 0:00:30]} 16. Nc3 {[%emt 0:01:30]} h5 {[%emt 0:08:30]} 17. Bxe4 {[%emt 0:23:30]} fxe4 {[%emt 0:02:30]} 18. f4 {[%emt 0:00:30]} exf3 {[%emt 0:12:30]} 19. Rxf3 {[%emt 0:00:00]} O-O {[%emt 0:00:00]} 20. Raf1 {[%emt 0:01:00]} dxc4 {[%emt 0:08:00]} 21. bxc4 {[%emt 0:00:30]} e5 {[%emt 0:00:00]} 22. Ne2 {[%emt 0:05:30]} exd4 {[%emt 0:07:48]} 23. Nxd4 {[%emt 0:03:30]} Qd7 {[%emt 0:07:25]} 24. Kg2 {[%emt 0:12:31]} Ne4 {[%emt 0:01:29]} 25. Rf4 {[%emt 0:13:57]} Rxf4 {[%emt 0:01:38]} 26. Rxf4 {[%emt 0:00:08]} Re8 {[%emt 0:00:24]} 27. Qe2 {[%emt 0:00:34]} Nf6 {[%emt 0:01:08]} 28. Qf2 {[%emt 0:01:38]} c5 {[%emt 0:02:01]} 29. Nf5 {[%emt 0:01:28]} Ne4 {[%emt 0:00:01]} 30. Qb2 {[%emt 0:00:10]} Qd2+ {[%emt 0:00:15]} 31. Qxd2 {[%emt 0:01:01]} Nxd2 {[%emt 0:00:30]} 32. Rh4 {[%emt 0:01:19]} g6 {[%emt 0:00:10]} 33. Nd6 {[%emt 0:01:22]} Rxe3 {[%emt 0:00:02]} 34. Nxb7 {[%emt 0:00:53]} Re2+ {[%emt 0:00:14]} 35. Kg1 {[%emt 0:00:00]} Nf3+ {[%emt 0:01:01]} 36. Kf1 {[%emt 0:00:11]} Re7 {[%emt 0:00:00]} 37. Nxa5 {[%emt 0:00:29]} Nxh4 {[%emt 0:00:15]} 38. gxh4 {[%emt 0:00:01]} Ra7 {[%emt 0:00:21]} 39. Nb3 {[%emt 0:00:06]} Rxa2 {[%emt 0:00:45]} 40. Nxc5 {[%emt 0:00:02]} Rc2 {[%emt 0:00:00]} 41. Nd3 {[%emt 0:04:35]} Rxc4 {[%emt 0:00:18]} 42. Ne5 {[%emt 0:00:00]} Rc1+ {[%emt 0:00:39]} 43. Kg2 {[%emt 0:00:10]} Kg7 {[%emt 0:00:08]} 44. Kg3 {[%emt 0:00:15]} Rc3+ {[%emt 0:00:01]} 45. Nf3 {[%emt 0:00:02]} Kf6 {[%emt 0:00:19]} 46. Kf4 {[%emt 0:00:12]} Ra3 {[%emt 0:00:29]} 47. Ng5 {[%emt 0:00:28]} Ra4+ {[%emt 0:00:56]} 48. Kg3 {[%emt 0:00:23]} Kf5 {[%emt 0:00:23]} 49. Nf3 {[%emt 0:02:10]} Ra3 {[%emt 0:00:03]} 50. Kf2 {[%emt 0:00:43]} Kf4 {[%emt 0:00:13]} 51. Ng5 {[%emt 0:01:03]} Ra2+ {[%emt 0:00:07]} 52. Kf1 {[%emt 0:00:00]} Kg3 {[%emt 0:00:22]} 0-1

[Event "8th Ali Ipek Tournament 2020"]
[Site "Ankara"]
[Date "2020.03.08"]
[Round "6.2"]
[White "Alkan, Ferman"]
[Black "Ibik, Halit Yavuz"]
[Result "1/2-1/2"]
[ECO "A29"]
[WhiteElo "1858"]
[BlackElo "1991"]
[Annotator "ChessBase"]
[PlyCount "145"]
[EventDate "2020.03.04"]
[EventType "swiss"]
[EventCountry "TUR"]
[SourceTitle "playchess.com"]
[Source "ChessBase"]
[SourceQuality "1"]
[TimeControl "5400+30"]

1. c4 {[%emt 0:00:30]} e5 {[%emt 0:03:30]} 2. Nc3 {[%emt 0:00:30]} Nf6 {[%emt 0:00:30]} 3. Nf3 {[%emt 0:01:30]} Nc6 {[%emt 0:00:30]} 4. g3 {[%emt 0:00:30]} d5 {[%emt 0:00:00]} 5. cxd5 {[%emt 0:02:30]} Nxd5 {[%emt 0:00:00]} 6. d3 {[%emt 0:01:30]} Be7 {[%emt 0:00:30]} 7. Bg2 {[%emt 0:00:30]} Nb6 {[%emt 0:00:30]} 8. O-O {[%emt 0:01:30]} Be6 {[%emt 0:00:00]} 9. a3 {[%emt 0:13:30]} a5 {[%emt 0:00:00]} 10. Be3 {[%emt 0:05:30]} O-O {[%emt 0:08:30]} 11. Rc1 {[%emt 0:01:30]} a4 {[%emt 0:03:30]} 12. Bxb6 {[%emt 0:05:30]} cxb6 {[%emt 0:07:30]} 13. Nxa4 {[%emt 0:04:30]} e4 {[%emt 0:00:30]} 14. Nd2 {[%emt 0:08:30]} Bg5 {[%emt 0:05:30]} 15. e3 {[%emt 0:12:30]} exd3 {[%emt 0:00:30]} 16. Nc3 {[%emt 0:00:30]} f5 {[%emt 0:03:30]} 17. Nf3 {[%emt 0:06:30]} Bf6 {[%emt 0:02:30]} 18. Nd2 {[%emt 0:01:30]} Qd7 {[%emt 0:02:30]} 19. Qf3 {[%emt 0:06:30]} Rfd8 {[%emt 0:03:30]} 20. h4 {[%emt 0:00:30]} Ra5 {[%emt 0:24:30]} 21. Rfd1 {[%emt 0:04:30]} h6 {[%emt 0:09:30]} 22. Bh1 {[%emt 0:07:23]} g5 {[%emt 0:05:51]} 23. hxg5 {[%emt 0:02:40]} hxg5 {[%emt 0:00:02]} 24. Qg2 {[%emt 0:01:22]} Kf7 {[%emt 0:00:28]} 25. e4 {[%emt 0:00:40]} Nd4 {[%emt 0:06:40]} 26. exf5 {[%emt 0:02:26]} Rxf5 {[%emt 0:00:14]} 27. Re1 {[%emt 0:01:27]} g4 {[%emt 0:01:59]} 28. Qxb7 {[%emt 0:00:58]} Qxb7 {[%emt 0:01:26]} 29. Bxb7 {[%emt 0:00:30]} Bg5 {[%emt 0:00:00]} 30. Nce4 {[%emt 0:01:19]} Ne2+ {[%emt 0:02:53]} 31. Kg2 {[%emt 0:00:40]} Nxc1 {[%emt 0:02:03]} 32. Rxc1 {[%emt 0:00:00]} Bxd2 {[%emt 0:00:05]} 33. Nxd2 {[%emt 0:00:01]} Rc5 {[%emt 0:01:16]} 34. Rd1 {[%emt 0:00:47]} Rc2 {[%emt 0:00:31]} 35. b3 {[%emt 0:01:15]} Bd5+ {[%emt 0:01:09]} 36. Bxd5+ {[%emt 0:00:30]} Rxd5 {[%emt 0:00:00]} 37. Nc4 {[%emt 0:00:04]} d2 {[%emt 0:03:26]} 38. Kf1 {[%emt 0:00:02]} b5 {[%emt 0:02:45]} 39. Ne3 {[%emt 0:00:30]} Rc1 {[%emt 0:00:30]} 40. Ke2 {[%emt 0:00:00]} Rxd1 {[%emt 0:00:00]} 41. Kxd1 {[%emt 0:01:24]} Rd4 {[%emt 0:00:00]} 42. Nf1 {[%emt 0:00:22]} Ke6 {[%emt 0:01:51]} 43. Nxd2 {[%emt 0:00:01]} Rd8 {[%emt 0:00:16]} 44. Ke2 {[%emt 0:00:33]} Ra8 {[%emt 0:00:21]} 45. a4 {[%emt 0:02:50]} bxa4 {[%emt 0:00:30]} 46. bxa4 {[%emt 0:00:00]} Rxa4 {[%emt 0:00:12]} 47. Kf1 {[%emt 0:00:00]} Kd5 {[%emt 0:00:29]} 48. Kg2 {[%emt 0:00:00]} Kd4 {[%emt 0:00:35]} 49. Nf1 {[%emt 0:00:00]} Kd3 {[%emt 0:00:36]} 50. Nh2 {[%emt 0:00:34]} Rb4 {[%emt 0:00:46]} 51. Nf1 {[%emt 0:00:54]} Ke2 {[%emt 0:00:12]} 52. Nh2 {[%emt 0:00:00]} Ra4 {[%emt 0:00:46]} 53. Nf1 {[%emt 0:00:00]} Ra8 {[%emt 0:00:27]} 54. Nh2 {[%emt 0:00:05]} Rg8 {[%emt 0:00:00]} 55. Kg1 {[%emt 0:00:13]} Rg7 {[%emt 0:01:03]} 56. Kg2 {[%emt 0:00:01]} Ke1 {[%emt 0:00:16]} 57. Kg1 {[%emt 0:01:12]} Ke2 {[%emt 0:00:28]} 58. Kg2 {[%emt 0:00:01]} Kd3 {[%emt 0:00:29]} 59. Kg1 {[%emt 0:00:20]} Ke4 {[%emt 0:00:37]} 60. Kg2 {[%emt 0:00:02]} Kf5 {[%emt 0:00:12]} 61. Kg1 {[%emt 0:00:33]} Ra7 {[%emt 0:00:46]} 62. Kg2 {[%emt 0:00:01]} Ra8 {[%emt 0:00:00]} 63. Kg1 {[%emt 0:00:56]} Ra2 {[%emt 0:01:30]} 64. Kg2 {[%emt 0:00:06]} Ra1 {[%emt 0:00:14]} 65. Nf1 {[%emt 0:00:10]} Re1 {[%emt 0:00:28]} 66. Nh2 {[%emt 0:00:06]} Re4 {[%emt 0:00:25]} 67. Kg1 {[%emt 0:01:18]} Ke5 {[%emt 0:00:05]} 68. Kg2 {[%emt 0:00:13]} Kd4 {[%emt 0:00:10]} 69. Kg1 {[%emt 0:00:00]} Kd3 {[%emt 0:00:27]} 70. Kg2 {[%emt 0:00:37]} Ke2 {[%emt 0:00:07]} 71. Kg1 {[%emt 0:00:00]} Ke1 {[%emt 0:00:39]} 72. Kg2 {[%emt 0:00:02]} Ra4 {[%emt 0:00:37]} 73. Kg1 {[%emt 0:00:55]} 1/2-1/2

[Event "8th Ali Ipek Tournament 2020"]
[Site "Ankara"]
[Date "2020.03.08"]
[Round "6.3"]
[White "Pektas, Yigit"]
[Black "Alkan, Omer Tarik"]
[Result "1-0"]
[ECO "A45"]
[WhiteElo "2161"]
[BlackElo "1757"]
[Annotator "ChessBase"]
[PlyCount "83"]
[EventDate "2020.03.04"]
[EventType "swiss"]
[EventCountry "TUR"]
[SourceTitle "playchess.com"]
[Source "ChessBase"]
[SourceQuality "1"]
[TimeControl "5400+30"]

1. d4 {[%emt 0:03:30]} Nf6 {[%emt 0:00:30]} 2. Bg5 {[%emt 0:00:00]} c5 {[%emt 0:00:30]} 3. Nc3 {[%emt 0:00:00]} cxd4 {[%emt 0:00:00]} 4. Qxd4 {[%emt 0:00:30]} Nc6 {[%emt 0:00:00]} 5. Qh4 {[%emt 0:00:30]} e6 {[%emt 0:00:30]} 6. e4 {[%emt 0:00:00]} Bb4 {[%emt 0:00:00]} 7. Nge2 {[%emt 0:03:00]} Be7 {[%emt 0:00:00]} 8. O-O-O {[%emt 0:00:30]} d5 {[%emt 0:05:30]} 9. Nd4 {[%emt 0:18:30]} Nxd4 {[%emt 0:02:30]} 10. Rxd4 {[%emt 0:00:30]} e5 {[%emt 0:00:30]} 11. Bb5+ {[%emt 0:01:30]} Bd7 {[%emt 0:00:30]} 12. Bxd7+ {[%emt 0:00:30]} Qxd7 {[%emt 0:00:30]} 13. Rd3 {[%emt 0:01:30]} d4 {[%emt 0:00:30]} 14. Qg3 {[%emt 0:00:30]} Qd6 {[%emt 0:11:30]} 15. Bxf6 {[%emt 0:00:30]} gxf6 {[%emt 0:01:30]} 16. Qg7 {[%emt 0:03:30]} Rf8 {[%emt 0:07:30]} 17. Nd5 {[%emt 0:00:30]} Rc8 {[%emt 0:00:30]} 18. Kb1 {[%emt 0:00:30]} f5 {[%emt 0:06:30]} 19. Nxe7 {[%emt 0:00:30]} Kxe7 {[%emt 0:01:30]} 20. Qxh7 {[%emt 0:00:30]} Qc6 {[%emt 0:00:30]} 21. Qh4+ {[%emt 0:00:30]} f6 {[%emt 0:00:30]} 22. Rd2 {[%emt 0:01:30]} Rh8 {[%emt 0:08:30]} 23. Qg3 {[%emt 0:00:00]} Qxe4 {[%emt 0:00:30]} 24. f3 {[%emt 0:11:00]} Qe3 {[%emt 0:00:30]} 25. Qg7+ {[%emt 0:03:30]} Ke6 {[%emt 0:00:30]} 26. Rd3 {[%emt 0:01:30]} Qe2 {[%emt 0:02:30]} 27. Rc1 {[%emt 0:00:30]} Rxc2 {[%emt 0:01:30]} 28. Rxc2 {[%emt 0:00:30]} Qf1+ {[%emt 0:00:30]} 29. Rc1 {[%emt 0:00:30]} Qxd3+ {[%emt 0:00:30]} 30. Ka1 {[%emt 0:00:00]} Rc8 {[%emt 0:00:30]} 31. Rb1 {[%emt 0:01:00]} Qb5 {[%emt 0:00:30]} 32. g4 {[%emt 0:00:30]} d3 {[%emt 0:11:30]} 33. gxf5+ {[%emt 0:00:30]} Kd5 {[%emt 0:00:00]} 34. Qxf6 {[%emt 0:00:30]} Qc6 {[%emt 0:01:00]} 35. Qe7 {[%emt 0:10:30]} d2 {[%emt 0:04:30]} 36. f6 {[%emt 0:00:30]} Rc7 {[%emt 0:02:30]} 37. Qd8+ {[%emt 0:00:30]} Qd6 {[%emt 0:00:30]} 38. Qg8+ {[%emt 0:00:30]} Qe6 {[%emt 0:01:30]} 39. Qg5 {[%emt 0:01:30]} Rc2 {[%emt 0:03:30]} 40. Qe3 {[%emt 0:00:30]} Qf5 {[%emt 0:02:30]} 41. f7 {[%emt 0:02:30]} Rc7 {[%emt 0:03:30]} 42. Qe4+ {[%emt 0:00:30]} 1-0

[Event "8th Ali Ipek Tournament 2020"]
[Site "Ankara"]
[Date "2020.03.08"]
[Round "6.4"]
[White "Aydin, Aytac"]
[Black "Yaver, Faik Emre"]
[Result "0-1"]
[ECO "D30"]
[WhiteElo "1652"]
[BlackElo "2086"]
[Annotator "ChessBase"]
[PlyCount "86"]
[EventDate "2020.03.04"]
[EventType "swiss"]
[EventCountry "TUR"]
[SourceTitle "playchess.com"]
[Source "ChessBase"]
[SourceQuality "1"]
[TimeControl "5400+30"]

1. d4 {[%emt 0:00:30]} d5 {[%emt 0:00:30]} 2. Nf3 {[%emt 0:00:30]} e6 {[%emt 0:00:30]} 3. c4 {[%emt 0:00:00]} a6 {[%emt 0:00:30]} 4. g3 {[%emt 0:01:00]} dxc4 {[%emt 0:02:30]} 5. a4 {[%emt 0:02:30]} c5 {[%emt 0:01:30]} 6. Bg2 {[%emt 0:09:30]} Nc6 {[%emt 0:02:30]} 7. e3 {[%emt 0:05:30]} cxd4 {[%emt 0:04:30]} 8. Nxd4 {[%emt 0:04:30]} Bd7 {[%emt 0:17:30]} 9. O-O {[%emt 0:01:30]} Bb4 {[%emt 0:02:30]} 10. Bd2 {[%emt 0:02:30]} Bc5 {[%emt 0:08:30]} 11. Bc3 {[%emt 0:00:30]} Nf6 {[%emt 0:00:30]} 12. Na3 {[%emt 0:05:30]} O-O {[%emt 0:04:30]} 13. Nxc6 {[%emt 0:08:30]} Bxc6 {[%emt 0:00:30]} 14. Bxc6 {[%emt 0:00:30]} bxc6 {[%emt 0:00:00]} 15. Nxc4 {[%emt 0:15:30]} Ne4 {[%emt 0:06:00]} 16. Qc2 {[%emt 0:01:30]} Qd5 {[%emt 0:01:30]} 17. Nd2 {[%emt 0:03:30]} Nxc3 {[%emt 0:00:30]} 18. Qxc3 {[%emt 0:00:30]} Rab8 {[%emt 0:02:30]} 19. Rfd1 {[%emt 0:00:30]} Rfd8 {[%emt 0:00:30]} 20. Nb3 {[%emt 0:04:30]} Qxd1+ {[%emt 0:02:30]} 21. Rxd1 {[%emt 0:00:30]} Rxd1+ {[%emt 0:00:00]} 22. Kg2 {[%emt 0:00:30]} Be7 {[%emt 0:01:00]} 23. Nd4 {[%emt 0:00:30]} Bf6 {[%emt 0:02:30]} 24. Qc2 {[%emt 0:01:30]} Ra1 {[%emt 0:01:30]} 25. Qxc6 {[%emt 0:03:30]} g6 {[%emt 0:08:30]} 26. b3 {[%emt 0:13:10]} Bxd4 {[%emt 0:03:30]} 27. exd4 {[%emt 0:00:00]} Rd1 {[%emt 0:01:30]} 28. Qxa6 {[%emt 0:01:52]} Rxb3 {[%emt 0:04:30]} 29. Qc8+ {[%emt 0:03:38]} Kg7 {[%emt 0:00:00]} 30. Qc2 {[%emt 0:01:39]} Rdb1 {[%emt 0:02:14]} 31. Qa2 {[%emt 0:03:35]} R1b2 {[%emt 0:01:47]} 32. Qa1 {[%emt 0:00:28]} Rd2 {[%emt 0:02:40]} 33. d5+ {[%emt 0:00:51]} Rbb2 {[%emt 0:00:02]} 34. Qe1 {[%emt 0:04:57]} Re2 {[%emt 0:01:48]} 35. Qc3+ {[%emt 0:01:02]} e5 {[%emt 0:00:11]} 36. Qc5 {[%emt 0:00:32]} e4 {[%emt 0:02:17]} 37. Kf1 {[%emt 0:00:17]} e3 {[%emt 0:01:55]} 38. fxe3 {[%emt 0:00:48]} Rec2 {[%emt 0:00:52]} 39. Qd4+ {[%emt 0:00:13]} f6 {[%emt 0:00:00]} 40. Qd1 {[%emt 0:01:21]} Rxh2 {[%emt 0:00:00]} 41. Kg1 {[%emt 0:00:27]} Rbg2+ {[%emt 0:00:18]} 42. Kf1 {[%emt 0:00:00]} Rh1+ {[%emt 0:00:12]} 43. Kxg2 {[%emt 0:00:08]} Rxd1 {[%emt 0:00:00]} 0-1

[Event "8th Ali Ipek Tournament 2020"]
[Site "Ankara"]
[Date "2020.03.08"]
[Round "6.5"]
[White "Akin, Yagiz Cinar"]
[Black "Ersahince, Umut Utku"]
[Result "1/2-1/2"]
[ECO "C54"]
[WhiteElo "1861"]
[BlackElo "1645"]
[Annotator "NA"]
[PlyCount "59"]
[EventDate "2020.03.04"]
[EventType "swiss"]
[EventCountry "TUR"]
[SourceTitle "playchess.com"]
[Source "ChessBase"]
[SourceQuality "1"]
[TimeControl "5400+30"]

{[%evp 11,53,13,42,38,32767,32767,32767,32767,32767,32767,32767,-34,-35,-35,-19,0,-12,0,0,-31,32767,-65,-63,-75,-43,-42,0,0,0,32767,4,-23,0,-8,32767,6,32767,-33,32767,-32,32767,32767,32767,-28]} 1. e4 {[%emt 0:00:30]} e5 {[%emt 0:00:30]} 2. Nf3 {[%emt 0:00:30]} Nc6 {[%emt 0:00:00]} 3. Bc4 {[%emt 0:00:00]} Bc5 {[%emt 0:00:00]} 4. O-O {[%emt 0:00:00]} Nf6 {[%emt 0:00:30]} 5. d3 {[%emt 0:00:00]} O-O {[%emt 0:00:00]} 6. c3 {[%emt 0:00:00]} d5 {[%emt 0:00:00]} 7. exd5 {[%emt 0:00:30]} Nxd5 {[%emt 0:00:00]} 8. b4 {[%emt 0:03:30]} Be7 {[%emt 0:00:00] C54: Giuoco Piano: 4 c3 Nf6, main lines with 5 d4 and 5 d3.} 9. b5 {[%emt 0:05:30]} Na5 {[%emt 0:00:30]} 10. Bxd5 {[%emt 0:00:30] 10.Bxd5 is better than 10.Nxe5.} Qxd5 {[%emt 0:00:00]} 11. c4 {[%emt 0:00:00]} Qd7 {[%emt 0:01:00]} 12. Nc3 {[%emt 0:04:00]} c6 {[%emt 0:12:30]} 13. bxc6 {[%emt 0:00:30] [#]} ({Reject} 13. Nxe5 Qd4 $17) 13... bxc6 $146 {[%emt 0:02:30]} ({Predecessor:} 13... Nxc6 14. Nd5 Bd6 15. Bb2 Qf5 16. Re1 Re8 17. Qd2 Be6 18. Re4 f6 19. Rae1 Bf7 {0-1 (57) Eggleston,D (2390)-Stefansson,H (2514) Graz 2019}) 14. Qa4 {[%emt 0:03:30]} Qc7 {[%emt 0:05:30]} 15. Bd2 {[%emt 0:18:30]} Nb7 {[%emt 0:01:30]} 16. Rfe1 {[%emt 0:02:30]} Nc5 {[%emt 0:23:30]} 17. Qc2 {[%emt 0:00:30]} Bf5 {[%emt 0:00:30]} 18. Ne4 {[%emt 0:02:30]} Rad8 {[%emt 0:02:30]} (18... f6 $15) 19. Nxc5 {[%emt 0:09:30]} Bxc5 {[%emt 0:00:30]} 20. Rxe5 {[%emt 0:02:30]} Bxd3 {[%emt 0:01:30]} 21. Qc1 {[%emt 0:04:30]} (21. Qb3 $5 {[%cal Re5c5]} Qb6 22. Be3 Qxb3 23. axb3 $11) 21... Bd4 {[%emt 0:15:30]} 22. Ba5 {[%emt 0:06:30]} Qd7 {[%emt 0:02:30]} 23. Nxd4 {[%emt 0:00:30]} Qxd4 {[%emt 0:00:30]} 24. Rg5 {[%emt 0:02:30]} f6 {[%emt 0:03:30]} 25. Rg3 {[%emt 0:00:30]} Rd7 {[%emt 0:01:30]} 26. c5 {[%emt 0:03:30]} Bg6 {[%emt 0:07:40]} 27. Qc3 $11 {[%emt 0:03:30]} Qxc3 {[%emt 0:04:01]} 28. Rxc3 {[%emt 0:00:30]} Rb8 {[%emt 0:00:43]} 29. Rb3 {[%emt 0:00:30]} Rdb7 {[%emt 0:00:38]} 30. Rxb7 {[%emt 0:01:30]} 1/2-1/2

[Event "8th Ali Ipek Tournament 2020"]
[Site "Ankara"]
[Date "2020.03.08"]
[Round "6.7"]
[White "Caberoglu, Arda"]
[Black "Ergani, Efe"]
[Result "1/2-1/2"]
[ECO "A45"]
[WhiteElo "1784"]
[BlackElo "1668"]
[Annotator "NA"]
[PlyCount "96"]
[EventDate "2020.03.04"]
[EventType "swiss"]
[EventCountry "TUR"]
[SourceTitle "playchess.com"]
[Source "ChessBase"]
[SourceQuality "1"]
[TimeControl "5400+30"]

1. d4 {[%emt 0:00:30]} Nf6 {[%emt 0:00:30]} 2. Bg5 {[%emt 0:00:30]} c5 {[%emt 0:03:30]} 3. d5 {[%emt 0:00:30]} e6 {[%emt 0:00:30]} 4. e4 {[%emt 0:02:30]} h6 {[%emt 0:03:30]} 5. Bxf6 {[%emt 0:02:30]} Qxf6 {[%emt 0:00:30]} 6. Nc3 {[%emt 0:00:30]} Na6 {[%emt 0:04:30]} 7. Bxa6 {[%emt 0:22:30]} bxa6 {[%emt 0:00:30]} 8. Nf3 {[%emt 0:00:30]} e5 {[%emt 0:11:30]} 9. O-O {[%emt 0:01:30]} d6 {[%emt 0:02:30]} 10. Nd2 {[%emt 0:01:30]} Be7 {[%emt 0:05:30]} 11. Nc4 {[%emt 0:08:30]} g5 {[%emt 0:06:30]} 12. Qh5 {[%emt 0:08:30]} O-O {[%emt 0:08:30]} 13. Qe2 {[%emt 0:05:30]} g4 {[%emt 0:04:30]} 14. f3 {[%emt 0:02:30]} Qg6 {[%emt 0:01:30]} 15. Ne3 {[%emt 0:04:30]} g3 {[%emt 0:02:30]} 16. hxg3 {[%emt 0:01:30]} Qxg3 {[%emt 0:00:30]} 17. Nf5 {[%emt 0:02:30]} Bxf5 {[%emt 0:06:30]} 18. exf5 {[%emt 0:00:30]} Rab8 {[%emt 0:01:30]} 19. b3 {[%emt 0:06:30]} c4 {[%emt 0:05:30]} 20. Ne4 {[%emt 0:07:10]} Qf4 {[%emt 0:01:30]} 21. Qd2 {[%emt 0:00:25]} Qxf5 {[%emt 0:01:30]} 22. Qxh6 {[%emt 0:01:42]} f6 {[%emt 0:03:30]} 23. g4 {[%emt 0:02:12]} Qh7 {[%emt 0:00:30]} 24. Qxh7+ {[%emt 0:03:11]} Kxh7 {[%emt 0:00:00]} 25. Ng3 {[%emt 0:00:42]} Rfc8 {[%emt 0:03:00]} 26. Nf5 {[%emt 0:00:37]} Bf8 {[%emt 0:00:30]} 27. Rf2 {[%emt 0:01:22]} Rc5 {[%emt 0:03:49]} 28. Rd2 {[%emt 0:02:11]} Rbb5 {[%emt 0:01:36]} 29. a4 {[%emt 0:07:22]} Rb4 {[%emt 0:00:35]} 30. bxc4 {[%emt 0:02:44]} Rcxc4 {[%emt 0:01:36]} 31. Kg2 {[%emt 0:00:59]} Rxa4 {[%emt 0:00:46]} 32. Rh1+ {[%emt 0:00:16]} Kg8 {[%emt 0:03:06]} 33. Kg3 {[%emt 0:00:19]} Rc7 {[%emt 0:08:30]} 34. Rdh2 {[%emt 0:01:30]} Bg7 {[%emt 0:00:52]} 35. Nxd6 {[%emt 0:00:25]} Rd4 {[%emt 0:01:39]} 36. Ne8 {[%emt 0:00:43]} Re7 {[%emt 0:00:50]} 37. Nxg7 {[%emt 0:00:36]} Rxg7 {[%emt 0:00:15]} 38. Rh8+ {[%emt 0:00:16]} Kf7 {[%emt 0:00:05]} 39. Rd8 {[%emt 0:00:19]} f5 {[%emt 0:02:26]} 40. Rb1 {[%emt 0:00:56]} Kg6 {[%emt 0:01:41]} 41. d6 {[%emt 0:00:30]} fxg4 {[%emt 0:00:46]} 42. fxg4 {[%emt 0:00:29]} Kf6 {[%emt 0:00:28]} 43. d7 {[%emt 0:00:33]} Rgxg4+ {[%emt 0:00:45]} 44. Kh3 {[%emt 0:00:27]} Rh4+ {[%emt 0:01:03]} 45. Kg3 {[%emt 0:00:04]} Ke7 {[%emt 0:00:07]} 46. Ra8 {[%emt 0:00:43]} Rhg4+ {[%emt 0:00:30]} 47. Kh3 {[%emt 0:00:00]} Rh4+ {[%emt 0:00:01]} 48. Kg3 {[%emt 0:00:24]} Rhg4+ {[%emt 0:00:06]} 1/2-1/2

[Event "8th Ali Ipek Tournament 2020"]
[Site "Ankara"]
[Date "2020.03.08"]
[Round "6.8"]
[White "Ceylan, Arda (Ali Riza)"]
[Black "Ozates, Mert"]
[Result "1/2-1/2"]
[ECO "D42"]
[WhiteElo "1637"]
[BlackElo "1810"]
[Annotator "NA"]
[PlyCount "60"]
[EventDate "2020.03.04"]
[EventType "swiss"]
[EventCountry "TUR"]
[SourceTitle "playchess.com"]
[Source "ChessBase"]
[SourceQuality "1"]
[TimeControl "5400+30"]

1. d4 {[%emt 0:00:30]} Nf6 {[%emt 0:00:30]} 2. Nf3 {[%emt 0:00:00]} d5 {[%emt 0:00:30]} 3. c4 {[%emt 0:00:00]} e6 {[%emt 0:00:00]} 4. cxd5 {[%emt 0:00:30]} Nxd5 {[%emt 0:00:00]} 5. Nc3 {[%emt 0:01:30]} Nxc3 {[%emt 0:00:30]} 6. bxc3 {[%emt 0:00:30]} c5 {[%emt 0:00:00]} 7. e3 {[%emt 0:04:30]} Be7 {[%emt 0:01:00]} 8. Bd3 {[%emt 0:01:30]} Nc6 {[%emt 0:01:30]} 9. O-O {[%emt 0:01:30]} O-O {[%emt 0:01:30]} 10. Rb1 {[%emt 0:04:30]} b6 {[%emt 0:04:30]} 11. Qa4 {[%emt 0:08:30]} Bb7 {[%emt 0:14:30]} 12. Ba3 {[%emt 0:04:30]} cxd4 {[%emt 0:02:30]} 13. cxd4 {[%emt 0:01:30]} Bxa3 {[%emt 0:10:30]} 14. Qxa3 {[%emt 0:00:30]} Na5 {[%emt 0:07:30]} 15. Nd2 {[%emt 0:09:30]} Qg5 $11 {[%emt 0:10:30]} 16. Ne4 {[%emt 0:06:30]} Qd5 {[%emt 0:02:30]} 17. Rb5 {[%emt 0:08:30]} Qd7 {[%emt 0:04:30]} 18. Rbb1 {[%emt 0:13:30]} Rfd8 {[%emt 0:12:30]} 19. Rfd1 {[%emt 0:05:30]} Rac8 {[%emt 0:09:29]} 20. Nc5 {[%emt 0:04:30]} bxc5 {[%emt 0:01:17]} 21. Qxa5 {[%emt 0:00:00]} cxd4 {[%emt 0:05:16]} 22. Qxa7 {[%emt 0:03:00]} Bd5 {[%emt 0:00:09]} 23. Qxd4 {[%emt 0:01:20]} Bxa2 {[%emt 0:00:18]} 24. Qxd7 {[%emt 0:12:45]} Rxd7 {[%emt 0:00:51]} 25. Ra1 {[%emt 0:00:37]} Bd5 {[%emt 0:01:59]} 26. Be4 {[%emt 0:01:15]} Kf8 {[%emt 0:01:29]} 27. Rd2 {[%emt 0:03:15]} Bc6 {[%emt 0:02:10]} 28. Rxd7 {[%emt 0:00:52]} Bxd7 {[%emt 0:00:04]} 29. Ra8 {[%emt 0:00:00]} Rxa8 {[%emt 0:00:54]} 30. Bxa8 {[%emt 0:00:00]} Ke7 {[%emt 0:00:50]} 1/2-1/2